Cogmind - Beta 13 @@@ ROGUE MODE // 2024.04.05 @ 10:27:34 Player: bonio350 Result: Destroyed by G-47 Trooper with Particle Gun Performance ------------- Evolutions (1) 500 Regions Visited (2) 400 Robots Destroyed (17) 85 Value Destroyed (409) 409 Prototype IDs (2) 40 Alien Tech Used (0) 0 Bonus (0) 0 TOTAL SCORE: 1434 Bonus ------- None Cogmind --------- Core Integrity 0/400 Matter 420/450 Energy 91/100 System Corruption 0% Temperature Cool (54) Movement Core (1450) Ox28 Location -9/Materials Parts ------- > --- POWER (1) -------- (None) > --- PROPULSION (2) --- (None) > --- UTILITY (4) ------ Huge Storage Unit Compact Matter Pod Target Analyzer > --- WEAPON (2) ------- Beam Rifle Assault Rifle > --- INVENTORY (25) --- Light Deuterium Engine Light Deuterium Engine Improved Treads Compact Wheel Flight Unit Flight Unit Flight Unit Huge Storage Unit Huge Storage Unit Huge Storage Unit Compact Matter Pod (0) Structural Scanner Target Analyzer Core Shielding EM Pulse Gun Heavy Assault Rifle Peak State ------------ > --- POWER ------------ Light Deuterium Engine > --- PROPULSION ------- Compact Wheel Compact Wheel > --- UTILITY ---------- Huge Storage Unit Compact Matter Pod Target Analyzer Hardened Light Armor Plating > --- WEAPON ----------- Heavy Assault Rifle Heavy Assault Rifle > --- INVENTORY -------- Light Deuterium Engine Light Deuterium Engine Light Deuterium Engine Compact Wheel Compact Wheel Compact Wheel Flight Unit Flight Unit Flight Unit Huge Storage Unit Huge Storage Unit Huge Storage Unit Compact Matter Pod Structural Scanner Target Analyzer Core Shielding EM Pulse Gun Beam Rifle Assault Rifle [Rating: 21] Favorites ----------- Power Ion Engine Engine Ion Engine Propulsion Compact Wheel Wheel Compact Wheel Utility Small Storage Unit Device Structural Scanner Storage Small Storage Unit Processor Target Analyzer Protection Core Shielding Weapon Assault Rifle Energy Gun EM Pulse Gun Ballistic Gun Assault Rifle Build | -11 -10 -9 ------- Run | Yrd Mat Mat Slots Evolved 2 | . . 2 Power . | . . . Propulsion . | . . . Utility 2 | . . 2 Weapon . | . . . Parts Attached 22 | 6 3 13 Power 3 | 1 . 2 Engine 3 | 1 . 2 Core . | . . . Reactor . | . . . Propulsion 4 | 2 . 2 Treads . | . . . Leg . | . . . Wheel 4 | 2 . 2 Hover . | . . . Flight . | . . . Utility 9 | 1 3 5 Device 1 | . . 1 Storage 4 | 1 2 1 Processor 2 | . . 2 Hackware . | . . . Protection 2 | . 1 1 Artifact . | . . . Weapon 6 | 2 . 4 Energy Gun 2 | 1 . 1 Energy Cannon . | . . . Ballistic Gun 4 | 1 . 3 Ballistic Cannon . | . . . Launcher . | . . . Special Weapon . | . . . Impact Weapon . | . . . Slashing Weapon . | . . . Piercing Weapon . | . . . Special Melee Weapon . | . . . Unidentified Prototypes . | . . . Parts Lost 9 | . . 9 Power 2 | . . 2 Propulsion 4 | . . 4 Utility 1 | . . 1 Weapon 2 | . . 2 Highest Loss Streak 4 | . . 4 To Critical Strikes . | . . . Average Slot Usage (%) 90 | . 99 85 Engine 12 | . 14 10 Wheel 19 | . 28 13 Storage 16 | . 14 18 Processor 5 | . . 10 Protection 12 | . 13 11 Energy Gun 7 | . 14 3 Ballistic Gun 14 | . 14 15 Naked Turns . | . . . Heaviest Build 97 | 14 90 97 Greatest Support 32 | 32 32 32 Greatest Overweight (x) 31 | . 2 31 Average Overweight (x) 1 | . 1 3 Largest Inventory Capacity 25 | 8 25 25 Average Capacity 14 | 7 24 25 Most Carried 20 | 4 8 20 Average Carried 5 | . 4 15 Final Capacity 25 | 8 25 25 Final Carried 16 | 1 8 16 Class Distribution -------------------- 100% | Mutant Dominant Class ---------------- Mutant | -10/Materials Mutant | -9/Materials Resources | -11 -10 -9 ----------- Run | Yrd Mat Mat Matter Collected 663 | 198 128 337 Remotely . | . . . Salvage Created 535 | . 190 345 Parts 45 | . 21 24 Haulers Intercepted . | . . . Recyclers Shooed 1 | . . 1 Parts Field Recycled . | . . . Retrieved Matter . | . . . Parts Self-Destructed . | . . . Prevented . | . . . Kills | -11 -10 -9 ------- Run | Yrd Mat Mat Combat Hostiles Destroyed 15 | . 6 9 Guns 15 | . 6 9 Classes Destroyed 4 | . 3 1 Watcher 2 | . 1 1 Swarmer 7 | . 4 3 Grunt 6 | . 2 4 Sentry 2 | . . 2 Best Kill Streak 4 | . 3 4 Combat Bots Only 4 | . 3 4 Max Kills in Single Turn 2 | . 1 2 Gunslinging 1 | . . 1 Exploded . | . . . Melee . | . . . Uniques/NPCs Destroyed . | . . . Combat | -11 -10 -9 -------- Run | Yrd Mat Mat Hostile Shots Fired 169 | . 22 147 Missed 50 | . 8 42 Damage Taken 1341 | . 121 1220 Core 405 | . 5 400 Absorbed by Shields . | . . . Redirected to Shielding 7 | . 1 6 Core Remaining (%) 99 | 100 98 . Volleys Fired 40 | . 12 28 Largest 2 | . 2 2 Hottest 76 | . 60 76 Shots Fired 77 | . 24 53 Gun 77 | . 24 53 Cannon . | . . . Launcher . | . . . Special . | . . . Kinetic 56 | . 12 44 Thermal 9 | . . 9 Explosive . | . . . Electromagnetic 12 | . 12 . Robot Hit Streak 16 | . 5 16 Robot Miss Streak 5 | . 2 5 Penetration Max . | . . . Secondary Targets 2 | . 1 1 Max Gunslinging Chain 1 | . 1 1 Shots Hit Robots 52 | . 15 37 Core Hits 27 | . 9 18 Critical Kills . | . . . Critical Parts Destroyed 3 | . . 3 Critical Strikes 5 | . 1 4 Burn 1 | . . 1 Destroy 3 | . . 3 Corrupt 1 | . 1 . Melee Attacks . | . . . Impact . | . . . Slashing . | . . . Piercing . | . . . Sneak Attacks . | . . . Combat Hostiles . | . . . Follow-up Attacks . | . . . Damage Inflicted 730 | . 181 549 Guns 730 | . 181 549 Cannons . | . . . Explosions . | . . . Melee . | . . . Ramming . | . . . Kinetic 563 | . 87 476 Thermal 73 | . . 73 Explosive . | . . . Electromagnetic 94 | . 94 . Impact . | . . . Slashing . | . . . Piercing . | . . . Highest Corruption . | . . . Average Corruption . | . . . Corruption Purged . | . . . Corruption Blocked . | . . . Overload Shots . | . . . Overflow Damage . | . . . Projectiles . | . . . Explosions . | . . . Melee . | . . . Knockbacks . | . . . Impact . | . . . Kinetic . | . . . Secondary . | . . . Self-Inflicted Damage . | . . . Shots . | . . . Rammed . | . . . Targets Rammed . | . . . Kicked . | . . . Crushed . | . . . Highest Temperature 52 | . 18 52 Average Temperature 21 | . 14 23 Received Heat Transfer 549 | . 24 525 Siege Activations . | . . . Robots Corrupted . | . . . Combat Hostiles . | . . . Parts Fried . | . . . Impact Corruptions . | . . . Robots Melted . | . . . Combat Hostiles . | . . . Parts Melted 1 | . . 1 Heat Transferred 259 | . . 259 Parts Sabotaged . | . . . Parts Stolen . | . . . Parts Stripped . | . . . Power Chain Reactions . | . . . Alert | -11 -10 -9 ------- Run | Yrd Mat Mat Peak Influence 257 | . 149 257 Initial 62 | . . 62 Average 45 | . 91 130 Maximum Alert Level 1 | . . 1 Low Security (%) 94 | 100 100 75 Level 1 5 | . . 24 Level 2 . | . . . Level 3 . | . . . Level 4 . | . . . Level 5 . | . . . High Security . | . . . Max Security . | . . . Squads Dispatched 3 | . 1 2 Investigation 1 | . . 1 Extermination . | . . . Reinforcement 2 | . 1 1 Assault . | . . . Garrison . | . . . Intercept . | . . . Searches Triggered . | . . . Construction Impeded . | . . . Haulers Reinforced . | . . . Active Scanning Responses . | . . . Cargo Convoy Interrupts . | . . . Stealth | -11 -10 -9 --------- Run | Yrd Mat Mat Distress Signals 4 | . 1 3 Communications Jammed . | . . . Distress Signals . | . . . Times Spotted 24 | . 8 16 Peak Tracking Total 6 | . 3 6 Tactical Retreats . | . . . Traps | -11 -10 -9 ------- Run | Yrd Mat Mat Traps Triggered 1 | . . 1 Indirectly . | . . . Trap Hack Attempts . | . . . Triggered . | . . . Disarmed . | . . . Reprogrammed . | . . . Reused . | . . . Traps Extracted . | . . . Installed . | . . . Triggered . | . . . Machines | -11 -10 -9 ---------- Run | Yrd Mat Mat Machines Disabled . | . . . Max in Single Turn . | . . . Machines Repaired . | . . . Machines Dismantled . | . . . Machines Sabotaged . | . . . Overloaded Fab Kills . | . . . Hacking | -11 -10 -9 --------- Run | Yrd Mat Mat Machines Accessed 5 | . 3 2 Terminals 3 | . 2 1 Fabricators . | . . . Repair Stations . | . . . Recycling Units 2 | . 1 1 Scanalyzers . | . . . Garrison Access . | . . . Total Hacks 21 | . 8 13 Successful 12 | . 6 6 Failed 6 | . 2 4 Catastrophic . | . . . Database Lockouts 3 | . . 3 Manual . | . . . Terminals 18 | . 6 12 Fabricators . | . . . Repair Stations . | . . . Recycling Units 3 | . 2 1 Scanalyzers . | . . . Garrison Access . | . . . Terminal Hacks 9 | . 4 5 Record 6 | . 2 4 Prototype ID Bank 1 | . 1 . Alert Level 1 | . . 1 Hauler Manifests 1 | . 1 . Fabricator Hacks . | . . . Repair Station Hacks . | . . . Recycling Unit Hacks 3 | . 2 1 Report Inventory 2 | . 1 1 Retrieve Components 1 | . 1 . Scanalyzer . | . . . Garrison Access Hacks . | . . . Unauthorized Hacks . | . . . Terminals . | . . . Fabricators . | . . . Repair Stations . | . . . Recycling Units . | . . . Scanalyzers . | . . . Garrison Access . | . . . Data Cores Recovered . | . . . Used . | . . . Hacking Detections 2 | . 1 1 Full Trace Events 2 | . 1 1 Feedback Events . | . . . Feedback Blocked . | . . . Robot Schematics Acquired . | . . . Robots Built . | . . . Authchips . | . . . Time . | . . . Total Robot Build Rating . | . . . Part Schematics Acquired . | . . . Parts Built . | . . . Authchips . | . . . Time . | . . . Total Part Build Rating . | . . . Parts Repaired . | . . . Time . | . . . Parts Recycled . | . . . Recycled Matter . | . . . Retrieved Matter . | . . . Retrieved Components 2 | . 2 . Parts Scanalyzed . | . . . Part Schematics Acquired . | . . . Parts Damaged . | . . . Bothacking | -11 -10 -9 ------------ Run | Yrd Mat Mat Used RIF Installer . | . . . Robots Hacked . | . . . Non-combat . | . . . Combat . | . . . Robot Hacks Applied . | . . . Relay Couplers Released . | . . . Fabnet Peak Effective % . | . . . Robots Rewired . | . . . Allies Hacked . | . . . Hacks Repelled . | . . . Allies | -11 -10 -9 -------- Run | Yrd Mat Mat Total Allies . | . . . Largest Group . | . . . Highest-Rated Group . | . . . Highest-Rated Ally . | . . . Total Orders . | . . . Ally Attacks . | . . . Total Damage . | . . . Kills . | . . . Allies Corrupted . | . . . Allies Melted . | . . . Intel | -11 -10 -9 ------- Run | Yrd Mat Mat Robot Analysis Total . | . . . Derelict Logs Recovered . | . . . Drone Launches . | . . . Drone Recoveries . | . . . Exploration | -11 -10 -9 ------------- Run | Yrd Mat Mat Turns Passed 1837 | 1108 305 424 Spaces Moved 611 | 277 175 159 Core 19 | 14 . 5 Treads . | . . . Legs . | . . . Wheels 592 | 263 175 154 Hover . | . . . Flight . | . . . Fastest Speed 50 | 50 100 130 Average Speed 130 | 97 127 190 Slowest Speed 1600 | 100 130 1600 Overloaded Moves . | . . . Propulsion Burnouts . | . . . Robots Hopped . | . . . Cave-ins Triggered . | . . . Exploration Rate (%) 27 | 25 30 27 Regions Visited 2 Branch Regions . Pre-discovered Areas . | . . . Known Exits Taken . | . . . Unknown Exits Taken 2 | 1 1 . Scrap Searched . | . . . Spaces Dug . | . . . Terrain Destroyed . | . . . Melee . | . . . Projectile . | . . . AOE . | . . . Terrain Rammed . | . . . Walls Destroyed . | . . . Machines Disabled . | . . . Actions | -11 -10 -9 --------- Run | Yrd Mat Mat Total 1575 | 1114 233 228 Wait 863 | 825 32 6 Move 609 | 276 174 159 Hop . | . . . Pick Up 36 | 7 10 19 Fast Attach . | . . . Attach 15 | 6 1 8 Detach . | . . . Swap 7 | . 2 5 Drop 5 | . 2 3 Fire 40 | . 12 28 Melee . | . . . Ram . | . . . Kick . | . . . Crush . | . . . Escape Stasis . | . . . Rewire . | . . . Trap . | . . . Miscellaneous . | . . . Route ------- -11/Scrapyard -10/Materials -9/Materials History --------- Turn | Location | Event 7 | -11/Scrapyard | Discovered new exit (range 15) 1109 | -11/Scrapyard | Entered Materials 1110 | -10/Materials | Build established: Mutant 1359 | -10/Materials | Discovered new exit (range 13) 1414 | -10/Materials | Entered another Materials area 1414 | -9/Materials | Evolved 2 slots: Utility x2 1585 | -9/Materials | Central database locked down 1585 | -9/Materials | Central database locked down 1585 | -9/Materials | Central database locked down 1711 | -9/Materials | Lost 3 parts (2n1w) 1767 | -9/Materials | Core integrity fell below 50% 1798 | -9/Materials | Core integrity fell below 20% 1807 | -9/Materials | Lost 4 parts (1p1n1u1w) 1838 | -9/Materials | Destroyed by G-47 Trooper with Particle Gun Last Messages --------------- Destroyed Ion Engine. G-34 Mercenary suffers critical hit (Burn). Sml. Laser melted. G-34 Mercenary destroyed. K-01 Serf collects debris. Acquired 36 matter. K-01 Serf collects debris. Acquired Hvy. Assault Rifle. R-06 Scavenger collects Aluminum Leg. Y-45 Defender destroyed. K-01 Serf collects debris. R-06 Scavenger collects Beam Rifle. Acquired 51 matter. Acquired 46 matter. R-06 Scavenger collects Lgt. Armor Plating. G-34 Mercenary suffers critical hit (Destroy). Destroyed Aluminum Leg. Com. Wheel destroyed. Lgt. Deuterium Engine destroyed. Hadron Collector disabled. Map ----- +----------------------------------------------------+ | ?????????????????????????????????????????????????? | | ?????????????????????????????????????????????????? | | ?????????????????????????????????????????????????? | | ?????????????????????????????????????????????????? | | ?????????????????????????????????????????????????? | | ????????????????#+####???????????????????????????? | | ????????????? ???????????????????????????? | | ??????????? ????? ?????????????????????? | | ??????????# * ???? ?????????????????????? | | ??????????# =%#???? #?????????????????????? | | ??????????# [#####+#####?????????????????? | | ???##+##### # !!!#?????????????????? | | ???# ^ # !!!##????????????????? | | ???# [# !! #????????????????? | | ???# """ """ # """ #?????????????????? | | ???# """ """ ]] # """ [#?????????????????? | | ???# """ """ ^ ]! # """ #?????????????????? | | ???# """^ """ ]! # = #?????????????????? | | ???# # ! ! #?????????????????? | | ???# ###/#############+??????????? | | ???# a ?????????? | | ???# * [ * ?????????? | | ???# = = g ?????????? | | ???# #####+######+####g#############+??????????? | | ???# #?? ???#[ % #?????????????????? | | ???# #?""" "???# * @ #?????????????????? | | ???# # """ ""??# """ """ #?????????????????? | | ???# # """ ""??# """ """" #?????????????????? | | ???# # ?# """ """" #?????????????????? | | ???# #? ?# #?????????????????? | | ???# #?"T" ?###############?????????????????? | | ???# #??? ???????????????????????????????????? | | #### ########??????????????????????????????????? | | # # #????????????????????????????????????? | | # # #????????????????????????????????????? | | # # #????????????????????????????????????? | | + = + #????????????????????????????????????? | | #* # #????????????????????????????????????? | | # = # " #????????????????????????????????????? | | #### # T #????????????????????????????????????? | | !** # " #????????????????????????????????????? | | ! + #????????????????????????????????????? | | !! ######????????????????????????????????????? | | #?????????????????????????????????????????? | | #?????????????????????????????????????????? | | #?????????????????????????????????????????? | | #### #?????????????????????????????????????????? | | #?????????????????????????????????????????? | | +?????????????????????????????????????????? | | #?????????????????????????????????????????? | +----------------------------------------------------+ Best States ------------- Heat Dissipation 28 Energy Generation 14 Energy Capacity 250 Matter Stores 422 Matter Capacity 450 Sight Range 16 Terrain Scan Density 10 Armor Coverage 150 Core Shielding 20 Evasion (%) 40 Targeting Accuracy 5 Target Analysis 5 Item Schematics ----------------- None Robot Schematics ------------------ None Fabricated ------------ Nothing Alien Tech Used ----------------- None Achievements -------------- None Challenges ------------ None Game ------ Seed BiocellWardroneRailgun Manual? 0 Play Time 00:20:09 Cumulative 3.0 hours Start 2024.04.05 @ 10:08:32 End 2024.04.05 @ 10:27:34 Sessions 1 Manual Loads 0 Difficulty Rogue Special Mode None Game No. 4 Rogue 4 Adventurer 0 Explorer 0 Win Type - Total 0 Types 0/0/0/0/0/0/0/0/0 Lore% 1 Gallery% 7 Achievement% 7 Wizard Run 0 Options --------- Layout 1 ASCII 0 Keyboard 0 Movement Mouse Keybinds 0 Fullscreen 1 Font 24/Smallcaps Map View 50x35 Zoom Use 0% Tactical HUD 0 Map Filters NONE Filters NONE Steam 1 RUN: e2bdac24-cb21-43c9-a9b1-35133df08a20